Cogmind - Beta 14 @@@ ROGUE MODE // 2024.08.14 @ 10:12:42 Player: Bits_and_Bytes Result: Destroyed by G-34 Mercenary with Small Laser Performance ------------- Evolutions (0) 0 Regions Visited (1) 200 Robots Destroyed (13) 65 Value Destroyed (329) 329 Prototype IDs (0) 0 Alien Tech Used (0) 0 Bonus (0) 0 TOTAL SCORE: 594 Bonus ------- None Cogmind --------- Core Integrity 0/250 Matter 296/300 Energy 125/125 System Corruption 0% Temperature Warm (178) Movement Walking (190) Ox1 Location -10/Materials Parts ------- > --- POWER (1) -------- Light Ion Engine > --- PROPULSION (2) --- Improved Aluminum Leg Improved Aluminum Leg > --- UTILITY (2) ------ Large Storage Unit Seismic Detector > --- WEAPON (2) ------- Beam Cannon Light Assault Rifle > --- INVENTORY (15) --- Light Treads Light Treads Light Treads Medium Storage Unit Improved Terrain Scanner Light Assault Rifle Grenade Launcher Mining Laser Peak State ------------ > --- POWER ------------ Light Ion Engine > --- PROPULSION ------- Improved Aluminum Leg Improved Aluminum Leg > --- UTILITY ---------- Medium Storage Unit Improved Terrain Scanner > --- WEAPON ----------- Beam Cannon Light Assault Rifle > --- INVENTORY -------- Light Treads Light Treads Light Treads Seismic Detector Mining Laser [Rating: 11] Favorites ----------- Power Light Ion Engine Engine Light Ion Engine Propulsion Improved Aluminum Leg Treads Light Treads Leg Improved Aluminum Leg Utility Medium Storage Unit Device Seismic Detector Storage Medium Storage Unit Weapon Light Assault Rifle Energy Gun EM Pulse Gun Energy Cannon Beam Cannon Ballistic Gun Light Assault Rifle Build | -11 -10 ------- Run | Yrd Mat Slots Evolved . | . . Power . | . . Propulsion . | . . Utility . | . . Weapon . | . . Parts Attached 22 | 8 14 Power 4 | 2 2 Engine 4 | 2 2 Core . | . . Reactor . | . . Propulsion 6 | 2 4 Treads 2 | 2 . Leg 4 | . 4 Wheel . | . . Hover . | . . Flight . | . . Utility 7 | 2 5 Device 4 | 1 3 Storage 3 | 1 2 Processor . | . . Hackware . | . . Protection . | . . Artifact . | . . Weapon 5 | 2 3 Energy Gun 1 | . 1 Energy Cannon 1 | . 1 Ballistic Gun 3 | 2 1 Ballistic Cannon . | . . Launcher . | . . Special Weapon . | . . Impact Weapon . | . . Slashing Weapon . | . . Piercing Weapon . | . . Special Melee Weapon . | . . Unidentified Prototypes . | . . Parts Lost 4 | . 4 Power 1 | . 1 Propulsion 2 | . 2 Utility . | . . Weapon 1 | . 1 Highest Loss Streak 3 | . 3 To Critical Strikes . | . . Average Slot Usage (%) 88 | . 88 Engine 10 | . 10 Leg 27 | . 27 Device 6 | . 6 Storage 14 | . 14 Energy Gun 3 | . 3 Energy Cannon 6 | . 6 Ballistic Gun 18 | . 18 Peak Build Rating 11 | 7 11 Average Rating 8 | 5 9 On Entrance 3 | . 7 Naked Turns . | . . Heaviest Build 28 | 14 28 Greatest Support 40 | 40 40 Greatest Overweight (x) 1 | . 1 Average Overweight (x) . | . . Largest Inventory Capacity 15 | 8 15 Average Capacity 9 | 7 9 Most Carried 8 | 7 8 Average Carried 6 | 3 6 Final Capacity 15 | 8 15 Final Carried 8 | 7 8 Class Distribution -------------------- 100% | Mutant Dominant Class ---------------- Mutant | -10/Materials Resources | -11 -10 ----------- Run | Yrd Mat Matter Collected 603 | 316 287 Remotely . | . . Salvage Created 549 | 92 457 Parts 35 | 8 27 Haulers Intercepted . | . . Recyclers Shooed 3 | . 3 Parts Field Recycled . | . . Retrieved Matter . | . . Parts Self-Destructed . | . . Prevented . | . . Kills | -11 -10 ------- Run | Yrd Mat Combat Hostiles Destroyed 7 | . 7 Guns 6 | . 6 Cannons 1 | . 1 Classes Destroyed 5 | 2 3 Worker 1 | . 1 Tunneler 1 | 1 . Recycler 2 | 1 1 Watcher 2 | . 2 Grunt 7 | . 7 Best Kill Streak 3 | 2 3 Combat Bots Only 2 | . 2 Max Kills in Single Turn 1 | 1 1 Gunslinging . | . . Exploded . | . . Melee . | . . Uniques/NPCs Destroyed . | . . Combat | -11 -10 -------- Run | Yrd Mat Hostile Shots Fired 101 | . 101 Missed 25 | . 25 Damage Taken 948 | . 948 Core 255 | . 255 Absorbed by Shields . | . . Core Remaining (%) 100 | 100 . Volleys Fired 81 | 9 72 Largest 2 | 2 2 Hottest 80 | 40 80 Shots Fired 145 | 18 127 Gun 132 | 18 114 Cannon 13 | . 13 Launcher . | . . Special . | . . Kinetic 121 | 18 103 Thermal 13 | . 13 Explosive . | . . Electromagnetic 11 | . 11 Robot Hit Streak 12 | 3 12 Robot Miss Streak 5 | 2 5 Penetration Max . | . . Secondary Targets 2 | . 2 Max Gunslinging Chain 1 | . 1 Shots Hit Robots 97 | 11 86 Core Hits 33 | 3 30 Critical Kills . | . . Critical Parts Destroyed . | . . Critical Strikes . | . . Melee Attacks . | . . Impact . | . . Slashing . | . . Piercing . | . . Sneak Attacks . | . . Combat Hostiles . | . . Follow-up Attacks . | . . Damage Inflicted 1024 | 111 913 Guns 902 | 111 791 Cannons 122 | . 122 Explosions . | . . Melee . | . . Ramming . | . . Kinetic 798 | 111 687 Thermal 122 | . 122 Explosive . | . . Electromagnetic 104 | . 104 Impact . | . . Slashing . | . . Piercing . | . . Highest Corruption . | . . Average Corruption . | . . Corruption Purged . | . . Corruption Blocked . | . . Overload Shots . | . . Overflow Damage . | . . Projectiles . | . . Explosions . | . . Melee . | . . Knockbacks . | . . Impact . | . . Kinetic . | . . Secondary . | . . Self-Inflicted Damage . | . . Shots . | . . Rammed . | . . Targets Rammed . | . . Kicked . | . . Crushed . | . . Highest Temperature 196 | . 196 Average Temperature 41 | . 41 Received Heat Transfer 540 | . 540 Siege Activations . | . . Robots Corrupted . | . . Combat Hostiles . | . . Parts Fried . | . . Impact Corruptions . | . . Robots Melted . | . . Combat Hostiles . | . . Parts Melted 1 | . 1 Heat Transferred 259 | . 259 Parts Sabotaged . | . . Parts Stolen . | . . Parts Stripped . | . . Power Chain Reactions . | . . Alert | -11 -10 ------- Run | Yrd Mat Peak Influence 161 | 10 161 Initial 6 | . 6 Average 50 | 2 60 Maximum Alert Level . | . . Low Security (%) 100 | 100 100 Level 1 . | . . Level 2 . | . . Level 3 . | . . Level 4 . | . . Level 5 . | . . High Security . | . . Max Security . | . . Squads Dispatched 1 | . 1 Investigation . | . . Extermination . | . . Reinforcement 1 | . 1 Assault . | . . Garrison . | . . Intercept . | . . Searches Triggered . | . . Construction Impeded . | . . Haulers Reinforced . | . . Active Scanning Responses . | . . Cargo Convoy Interrupts . | . . Stealth | -11 -10 --------- Run | Yrd Mat Distress Signals 2 | . 2 Communications Jammed . | . . Distress Signals . | . . Times Spotted 12 | . 12 Peak Tracking Total 2 | . 2 Tactical Retreats . | . . Traps | -11 -10 ------- Run | Yrd Mat Traps Triggered . | . . Indirectly . | . . Trap Hack Attempts . | . . Triggered . | . . Disarmed . | . . Reprogrammed . | . . Reused . | . . Traps Extracted . | . . Installed . | . . Triggered . | . . Machines | -11 -10 ---------- Run | Yrd Mat Machines Disabled . | . . Max in Single Turn . | . . Machines Repaired . | . . Machines Dismantled . | . . Machines Sabotaged . | . . Overloaded Fab Kills . | . . Hacking | -11 -10 --------- Run | Yrd Mat Machines Accessed 6 | . 6 Terminals 5 | . 5 Fabricators . | . . Repair Stations . | . . Recycling Units 1 | . 1 Scanalyzers . | . . Garrison Access . | . . Total Hacks 21 | . 21 Successful 8 | . 8 Failed 13 | . 13 Catastrophic 3 | . 3 Database Lockouts . | . . Manual 21 | . 21 Terminals 19 | . 19 Fabricators . | . . Repair Stations . | . . Recycling Units 2 | . 2 Scanalyzers . | . . Garrison Access . | . . Terminal Hacks 1 | . 1 Recall Reinforcements 1 | . 1 Fabricator Hacks . | . . Repair Station Hacks . | . . Recycling Unit Hacks . | . . Scanalyzer . | . . Garrison Access Hacks . | . . Unauthorized Hacks 7 | . 7 Terminals 6 | . 6 Track 1 | . 1 Botnet 4 | . 4 Operators 1 | . 1 Fabricators . | . . Repair Stations . | . . Recycling Units 1 | . 1 Mask 1 | . 1 Scanalyzers . | . . Garrison Access . | . . Data Cores Recovered . | . . Used . | . . Hacking Detections 4 | . 4 Full Trace Events . | . . Feedback Events . | . . Feedback Blocked . | . . Robot Schematics Acquired . | . . Robots Built . | . . Authchips . | . . Time . | . . Total Robot Build Rating . | . . Part Schematics Acquired . | . . Parts Built . | . . Authchips . | . . Time . | . . Total Part Build Rating . | . . Parts Repaired . | . . Time . | . . Parts Recycled . | . . Recycled Matter . | . . Retrieved Matter . | . . Retrieved Components . | . . Parts Scanalyzed . | . . Part Schematics Acquired . | . . Parts Damaged . | . . Bothacking | -11 -10 ------------ Run | Yrd Mat Used RIF Installer . | . . Robots Hacked . | . . Non-combat . | . . Combat . | . . Robot Hacks Applied . | . . Relay Couplers Released . | . . Fabnet Peak Effective % . | . . Robots Rewired . | . . Allies Hacked . | . . Hacks Repelled . | . . Allies | -11 -10 -------- Run | Yrd Mat Total Allies . | . . Largest Group . | . . Highest-Rated Group . | . . Highest-Rated Ally . | . . Total Orders . | . . Ally Attacks . | . . Total Damage . | . . Kills . | . . Allies Corrupted . | . . Allies Melted . | . . Intel | -11 -10 ------- Run | Yrd Mat Robot Analysis Total . | . . Derelict Logs Recovered . | . . Drone Launches . | . . Drone Recoveries . | . . Exploration | -11 -10 ------------- Run | Yrd Mat Turns Passed 885 | 150 735 Spaces Moved 476 | 68 408 Core 4 | 4 . Treads 73 | 64 9 Legs 399 | . 399 Wheels . | . . Hover . | . . Flight . | . . Fastest Speed 50 | 50 120 Average Speed 127 | 153 122 Slowest Speed 190 | 160 190 Overloaded Moves . | . . Propulsion Burnouts . | . . Robots Hopped . | . . Cave-ins Triggered . | . . Exploration Rate (%) 34 | 6 62 Regions Visited 1 Branch Regions . Pre-discovered Areas . | . . Known Exits Taken . | . . Unknown Exits Taken 1 | 1 . Scrap Searched . | . . Spaces Dug . | . . Terrain Destroyed . | . . Melee . | . . Projectile . | . . AOE . | . . Terrain Rammed . | . . Walls Destroyed . | . . Machines Disabled . | . . Actions | -11 -10 --------- Run | Yrd Mat Total 624 | 94 530 Wait 22 | 2 20 Move 475 | 67 408 Hop . | . . Pick Up 14 | 7 7 Fast Attach 9 | 7 2 Attach 5 | . 5 Detach 2 | . 2 Swap 8 | 1 7 Drop 8 | 1 7 Fire 81 | 9 72 Melee . | . . Ram . | . . Kick . | . . Crush . | . . Escape Stasis . | . . Rewire . | . . Trap . | . . Miscellaneous . | . . Route ------- -11/Scrapyard -10/Materials (discovered 3 exits: [*Mat] / [*Min x2]) History --------- Turn | Location | Event 8 | -11/Scrapyard | Discovered new exit (range 16) 151 | -11/Scrapyard | Entered Materials 274 | -10/Materials | Discovered new exit (range 12) 326 | -10/Materials | Build established: Mutant 370 | -10/Materials | Core integrity fell below 50% 402 | -10/Materials | Lost 3 parts (2n1w) 534 | -10/Materials | Discovered new exit (range 16) 575 | -10/Materials | Discovered new exit (range 16) 825 | -10/Materials | Core integrity fell below 20% 886 | -10/Materials | Destroyed by G-34 Mercenary with Small Laser Last Messages --------------- >>Trojan(Botnet) Trojan loaded successfully. Testing... Terminal linked with 3 systems. Awaiting botnet instructions. >>Trojan(Track) Trojan loaded successfully. Testing... Tracking enabled and active. 00722_ Acquired 21 matter. 00758_ ALERT: Hostiles spotted, dispatching reinforcements to Terminal M002. 00788_ Connecting with Terminal... [Achievement: GoHome()] >>Recall(Reinforcements) Establishing remote squad link... Recalled reinforcement squad SQXHAM0UIF. 00874_ Heat Sink melted. 00874_ G-34 Mercenary destroyed. 00877_ Acquired 38 matter. Map ----- +----------------------------------------------------+ | ????????#????????????????# ## """ #?????# | | ??????????????????#??????# ## """"" #??####+ | | ?????????????????????????# ## """"" #??# | | ?????????????????????????# ## """"" #??# " | | ???#???????????#?????????# ## """ #??# " | | ?????????????????????????# ## #??# = " | | ???????################### ######+#######??# | | ???????# T #### #??????# | | ???????# #??????# | | ???????# #??????##### | | ?????#?# ############ | | ????#??# !## ############ | | ???????# # ?????????## ############# | | ######## # #????????# #???????????? | | # # ########## ####????????? | | # """ #######?# # !##???????? | | # / """ ##??????# # % !#???????? | | # """ #???????# # !#???????? | | # """ #?#?????# ^# !#???????? | | + """ #???????# +% #???????? | | # #??#????# # !##???????? | | ### ##?#????######## % ####????????? | | !###+### ###########????# """#????????? | | # # # #????# "#????????? | | # ! + + ##??## |"#????????? | | ######## # # @ #????# < ""#????????? | | ???#???#! ! !# # """g#????# !"#????????? | | ????#??#!!! # # """ #????# "#????????? | | ???#?###!! # # """ #????# """#????????? | | ???????# # # "T" #??#?## ####????????? | | ???????# # # """ #?????# #???????????? | | ?#?????####### ###########?????# #???????????? | | ??#######????# #???????????????# #???????????? | | ??# ###### ################# ##??????????? | | ??# T % #######+#??? | | ?## "" #? | | ??# T #? | | ??# ######################### #? | | ??## #####????????????????????# # """ #? | | ???# **#????????#???????????####### """ #? | | ???# **#??????????????????????????? """ ???+? | | ???# ||#????#???????????????#??????? ?????? | | ???# ||#????#??????????????????????? ????? | | ???# #??#?????????????????????????? [!????? | | ???# #????????????????????????????? [!????? | | ???# #####????#???#????????????????????? [ ???? | | ???# #??????????????????????????????????? ?????? | | ???# #???????????????????????????????????????o?? | | ???# #?#???????????????????????????????????????? | | ???# #?????????????????????????????????????????? | +----------------------------------------------------+ Best States ------------- Heat Dissipation 25 Energy Generation 10 Energy Capacity 250 Matter Stores 300 Matter Capacity 300 Sight Range 16 Terrain Scan Range 16 Terrain Scan Density 10 Evasion (%) 55 Recoil Reduction 2 Item Schematics ----------------- None Robot Schematics ------------------ None Fabricated ------------ Nothing Alien Tech Used ----------------- None Achievements -------------- GoHome() Challenges ------------ None Game ------ Seed AlloyUltimateNeutralizer Manual? 0 Play Time 00:14:33 Cumulative 26.5 hours Start 2024.08.13 @ 22:17:10 End 2024.08.14 @ 10:12:42 Sessions 3 Manual Loads 0 Difficulty Rogue Special Mode None Game No. 24 Rogue 24 Adventurer 0 Explorer 0 Win Type - Total 0 Types 0/0/0/0/0/0/0/0/0 Lore% 9 Gallery% 26 Achievement% 23 Wizard Run 0 Options --------- Layout 0 ASCII 0 Keyboard 0 Movement Mouse Keybinds 0 Fullscreen 1 Font 24/Smallcaps Map View 38x25 Zoom Use 85% Tactical HUD 1 Map Filters NONE Filters NONE Steam 1 RUN: 79d9dd04-03e8-4f9a-a5ae-cdab361606fc